bitfinex/quotes_ETHUSD_20250807
["timestamp","ask_amount","ask_price","bid_price","bid_amount"]
[1754557639193,3.61628373,3729.4,3729.3,0.9216]
[1754557639732,0.93488726,3729.4,3729.3,0.9216]
[1754557640081,0.6844,3729.4,3729.3,0.9216]
[1754557640282,0.93492348,3729.4,3729.3,0.9216]
[1754557640916,3.61631995,3729.4,3729.3,0.9216]
[1754557641524,0.93492348,3729.4,3729.3,0.9216]
[1754557642129,0.38492348,3729.4,3729.3,0.9216]
[1754557642290,3.61631995,3729.4,3729.3,0.9216]
[1754557642730,0.93492348,3729.4,3729.3,0.9216]
[1754557643021,0.38492348,3729.4,3729.3,0.9216]
[1754557644323,3.23146837,3729.3,3729.2,0.001]
[1754557644623,3.48199185,3729.3,3729.2,0.4612]
[1754557645015,3.23146837,3729.3,3729.2,0.4612]
[1754557645318,3.48217522,3729.3,3729.2,0.001]
[1754557645817,3.48223002,3729.3,3729.2,0.4612]
[1754557646034,7.56523002,3729.3,3729.2,0.4612]
[1754557646196,8.6535119,3729.3,3729.2,0.001]
[1754557646402,9.6000119,3729.3,3729.2,0.001]
[1754557647018,9.1251119,3729.3,3729.2,0.001]
[1754557647224,8.6535119,3729.3,3729.2,0.001]
[1754557647448,8.6535119,3729.3,3729.2,0.4612]
[1754557648047,8.65365334,3729.3,3729.2,0.4612]
[1754557648341,8.65365334,3729.3,3729.2,0.001]
[1754557648547,9.60015334,3729.3,3729.2,0.001]
[1754557649110,8.65365334,3729.3,3729.2,0.001]
[1754557651013,9.60020258,3729.3,3729.2,0.001]
[1754557651311,8.65370258,3729.3,3729.2,0.001]
[1754557651514,5.97023421,3729.3,3729.2,0.9289]
[1754557651748,7.5634207,3729.3,3729.2,0.9289]
[1754557652317,0.25095233,3729.3,3729.2,3.61044027]
[1754557652546,0.38535233,3729.3,3729.2,0.9289]
[1754557652908,0.38535233,3729.3,3729.2,3.61044027]
[1754557655718,0.38535233,3729.3,3729.2,0.9289]
[1754557656126,0.38535233,3729.3,3729.2,3.61044027]
[1754557656734,0.1344,3729.3,3729.2,3.61044027]
[1754557656920,0.38551197,3729.3,3729.2,3.61044027]
[1754557657547,0.38551197,3729.3,3729.2,4.23964993]
[1754557658022,0.25111197,3729.3,3729.2,4.23964993]
[1754557658822,0.25111197,3729.3,3729.2,8.32064993]
[1754557659220,0.25111197,3729.3,3729.2,8.45504993]
[1754557659431,0.1344,3730.0,3729.8,2.68107522]
[1754557659633,0.25104363,3729.9,3729.8,2.68107522]
[1754557659830,0.1344,3730.0,3729.6,4.082]
[1754557660035,0.25105437,3729.9,3729.8,0.4602]
[1754557660231,0.25105437,3729.9,3729.2,1.09040966]
[1754557660431,10.11493349,3729.8,3729.2,0.001]
[1754557660653,0.9465,3729.9,3729.2,0.001]
[1754557660654,2.68146837,3729.3,3729.2,0.001]
[1754557660856,3.61692274,3729.3,3729.2,0.001]
[1754557661362,6.12463692,3729.3,3729.2,0.001]
[1754557661737,1.81226855,3729.3,3729.2,0.001]
[1754557662062,1.81226855,3729.3,3729.2,0.4612]
[1754557662063,0.38545437,3729.3,3729.2,0.4612]
[1754557662267,0.38545437,3729.3,3729.2,0.001]
[1754557662563,0.38545437,3729.3,3729.2,0.4612]
[1754557662968,0.38545437,3729.3,3729.2,3.14274027]
[1754557663164,0.38545437,3729.3,3729.2,3.61044027]
[1754557663350,0.25105437,3729.3,3729.2,3.61044027]
[1754557665049,0.25105437,3729.3,3729.2,4.66168676]
[1754557665249,0.25105437,3729.3,3729.2,4.82290216]
[1754557665450,0.25105437,3729.3,3729.2,4.79608676]
[1754557666263,0.1344,3730.0,3729.9,2.68103702]
[1754557666473,0.38547439,3730.0,3729.9,2.68103702]
[1754557666762,0.38547439,3730.0,3729.9,3.60893702]
[1754557667165,0.25107439,3730.0,3729.9,3.60893702]
[1754557667364,0.25107439,3730.0,3729.9,5.57783075]
[1754557668264,0.25107439,3730.0,3729.9,5.11013075]
[1754557668469,0.25107439,3730.0,3729.9,3.14123702]
[1754557668629,0.25107439,3730.0,3729.9,3.60893702]
[1754557670147,0.25107439,3730.0,3729.9,3.14123702]
[1754557671837,0.25107439,3730.0,3729.9,3.58463702]
[1754557674560,0.002,3730.1,3730.0,2.68096514]
[1754557674760,0.25252466,3730.1,3730.0,7.22756514]
[1754557674960,0.25252466,3730.1,3730.0,6.76396514]
[1754557675148,0.25252466,3730.1,3730.0,7.22756514]
[1754557675976,0.25250515,3730.1,3730.0,7.22756514]
[1754557676357,0.25250515,3730.1,3730.0,6.76396514]
[1754557677971,1.19920515,3730.1,3730.0,4.081]
[1754557679872,2.15084546,3730.1,3730.0,4.081]
[1754557681531,0.38690515,3730.1,3730.0,4.081]
[1754557681997,0.1364,3730.1,3730.0,4.081]
[1754557682204,0.38710279,3730.1,3730.0,4.081]
[1754557683016,0.38710279,3730.1,3730.0,6.76196514]
[1754557683211,0.38710279,3730.1,3730.0,4.5446]
[1754557683588,0.38710279,3730.1,3730.0,7.22556514]
[1754557683922,0.38710279,3730.1,3730.0,4.081]
[1754557684222,0.38710279,3730.1,3730.0,7.22556514]
[1754557685069,0.38710279,3730.1,3730.0,7.66896514]
[1754557685369,0.38710279,3730.1,3730.0,7.22556514]
[1754557685720,0.38724007,3730.1,3730.0,7.22556514]
[1754557686938,0.38726936,3730.1,3730.0,7.22556514]
[1754557687324,0.38726936,3730.1,3730.0,4.081]
[1754557687859,1.33396936,3730.1,3730.0,4.079]
[1754557689865,1.33396936,3730.1,3729.3,3.25923038]
[1754557689866,4.01487755,3730.1,3729.5,2.68130584]
[1754557690165,3.23103809,3729.9,3729.2,0.001]
[1754557690330,0.55,3729.7,3729.3,4.08]
[1754557690661,0.1344,3729.4,3729.3,4.08]
[1754557690824,0.38526936,3729.4,3729.3,4.08]
[1754557691021,0.38526936,3729.4,3729.2,0.001]
[1754557691220,0.25086936,3729.3,3729.2,0.001]
[1754557691458,1.19756936,3729.3,3729.2,6.76154027]
[1754557691841,0.25086936,3729.3,3729.2,0.001]
[1754557692037,0.25086936,3729.3,3729.2,6.76154027]
[1754557692244,0.25086936,3729.3,3729.2,7.22514027]
[1754557693984,0.25086936,3729.3,3729.2,3.14614027]
[1754557694189,0.25086936,3729.3,3729.2,7.66754027]
[1754557694498,0.25086936,3729.3,3729.2,8.97072283]
[1754557694643,0.25086936,3729.3,3729.2,12.10512283]
[1754557694846,0.002,3730.1,3730.0,2.68096514]
[1754557695078,0.25314244,3730.1,3730.0,6.76196514]
[1754557695295,0.25314244,3730.1,3730.0,7.66896514]
[1754557695442,0.25314244,3730.1,3730.0,2.68096514]
[1754557695647,0.25314244,3730.1,3730.0,6.76196514]
[1754557696368,0.25314244,3730.1,3730.0,7.66896514]
[1754557696863,0.25314244,3730.1,3730.0,7.22556514]
[1754557697492,0.25314244,3730.1,3730.0,6.76196514]
[1754557700197,0.002,3730.1,3730.0,6.76196514]
[1754557700563,0.25314956,3730.1,3730.0,6.76196514]
[1754557700767,0.25314956,3730.1,3730.0,4.081]
[1754557700962,1.16774956,3730.1,3730.0,4.079]
[1754557701412,0.25314956,3730.1,3730.0,4.079]
[1754557701562,0.25315868,3730.1,3730.0,6.75996514]
[1754557702860,0.25315868,3730.1,3730.0,7.23336514]
[1754557703662,0.25315868,3730.1,3730.0,7.66546514]
[1754557705117,0.25315868,3730.1,3730.0,7.23336514]
[1754557705621,0.25315868,3730.1,3730.0,7.66546514]
[1754557706223,0.25315868,3730.1,3730.0,8.91799421]
[1754557707026,0.25315868,3730.1,3730.0,8.14689421]
[1754557707324,0.25315868,3730.1,3730.0,6.96339798]
[1754557707623,0.70365868,3730.1,3730.0,6.96339798]
[1754557707786,0.25315868,3730.1,3730.0,2.68096514]
[1754557707986,0.25315868,3730.1,3730.0,6.75896514]
[1754557708817,0.25315868,3730.1,3730.0,10.66446514]
[1754557709424,0.25315868,3730.1,3730.0,10.23236514]
[1754557709610,0.25315868,3730.1,3730.0,9.75896514]
[1754557709812,0.25315868,3730.1,3730.0,10.23236514]
[1754557710610,0.25315868,3730.1,3730.0,10.79886514]
[1754557711262,0.25315868,3730.1,3730.0,10.36676514]
[1754557711522,0.25315868,3730.1,3730.0,9.89236514]
[1754557711725,0.25315868,3730.1,3730.0,9.75896514]
[1754557711900,1.16775868,3730.1,3730.0,5.68096514]
[1754557712101,1.30215868,3730.1,3729.9,2.68099572]
[1754557712299,0.25115868,3730.0,3729.9,2.68099572]
[1754557712701,0.25115868,3730.0,3729.9,7.23139572]
[1754557713624,0.25115868,3730.0,3729.9,6.75799572]
[1754557714998,0.1364,3730.1,3730.0,2.68096514]
[1754557715203,0.38745493,3730.1,3730.0,2.68096514]
[1754557717145,1.30205493,3730.1,3730.0,2.68096514]
[1754557717345,0.38745493,3730.1,3730.0,2.68096514]
[1754557717951,0.25305493,3730.1,3730.0,3.15436514]
[1754557718161,0.25305015,3730.1,3730.0,3.15436514]
[1754557722931,0.25305015,3730.1,3730.0,3.15536514]
[1754557723441,0.25305015,3730.1,3730.0,2.68196514]
[1754557723773,0.25305015,3730.1,3730.0,3.15536514]
[1754557726386,0.25305015,3730.1,3730.0,2.68196514]
[1754557726988,0.25305015,3730.1,3730.0,3.15536514]
[1754557727438,0.25305015,3730.1,3730.0,7.22936514]
[1754557729672,0.25305015,3730.1,3730.0,6.75596514]
[1754557730075,0.25346506,3730.1,3730.0,6.75596514]
[1754557730477,0.25346506,3730.1,3730.0,0.001]
[1754557730684,1.18546506,3730.1,3730.0,4.075]
[1754557730879,1.18546506,3730.1,3730.0,6.75596514]
[1754557731247,1.18546506,3730.1,3730.0,2.68196514]
[1754557731576,1.18546506,3730.1,3730.0,6.75596514]
[1754557733082,1.18547148,3730.1,3730.0,6.75596514]
[1754557733586,1.18547148,3730.1,3730.0,4.075]
[1754557733811,1.18547148,3730.1,3730.0,0.001]
[1754557734085,1.18547148,3730.1,3730.0,4.075]
[1754557734382,1.58572902,3730.1,3730.0,4.075]
[1754557734586,1.58572902,3730.1,3730.0,0.001]
[1754557734762,1.58572902,3730.1,3730.0,4.075]
[1754557735166,1.58572902,3730.1,3730.0,0.001]
[1754557735666,1.58572902,3730.1,3730.0,4.075]
[1754557735856,1.18543117,3730.1,3730.0,4.075]
[1754557737587,1.18543117,3730.1,3730.0,0.001]
[1754557737790,1.18543117,3730.1,3730.0,4.075]
[1754557740867,1.18543117,3730.1,3730.0,0.001]
[1754557741352,1.18540777,3730.1,3730.0,0.001]
[1754557741557,1.8537444,3730.1,3730.0,0.001]
[1754557742393,4.2832299,3730.1,3730.0,0.001]
[1754557742592,4.53460967,3730.1,3730.0,0.001]
[1754557742897,4.53460967,3730.1,3730.0,4.075]
[1754557743263,5.08460967,3730.1,3730.0,0.001]
[1754557744098,14.39848879,3730.1,3730.0,0.001]
[1754557744259,3.23118079,3729.7,3729.6,0.001]
[1754557744598,6.30083984,3729.7,3729.6,0.001]
[1754557744781,3.61696056,3729.7,3729.6,0.001]
[1754557744989,4.54896056,3729.7,3729.6,0.001]
[1754557751203,1.86777977,3729.7,3729.6,0.001]
[1754557752000,0.25137977,3729.7,3729.6,0.001]
[1754557752164,0.38577977,3729.7,3729.6,3.64025268]
[1754557752361,0.38577977,3729.7,3729.6,8.3464171]
[1754557752564,0.25137977,3729.7,3729.6,8.3464171]
[1754557752800,0.1344,3729.9,3729.8,2.6811089]
[1754557752987,0.38508323,3729.9,3729.8,2.6811089]
[1754557753187,0.38508323,3729.9,3729.8,3.6391089]
[1754557753362,0.38508323,3729.9,3729.8,4.7418615]
[1754557754402,0.38511121,3729.9,3729.8,3.6391089]
[1754557755703,0.38512961,3729.9,3729.8,3.6391089]
[1754557756366,0.38512961,3729.9,3729.8,2.6811089]
[1754557756572,0.38512961,3729.9,3729.8,3.1659089]
[1754557757090,0.38512961,3729.9,3729.8,3.6391089]
[1754557761597,0.38512961,3729.9,3729.8,3.1659089]
[1754557761911,1.32832961,3729.9,3729.8,4.074]
[1754557762208,1.72944892,3729.9,3729.8,4.074]
[1754557762813,1.32832961,3729.9,3729.8,4.074]
[1754557763106,1.32832961,3729.9,3729.7,2.68117292]
[1754557763311,1.0776,3729.9,3729.8,4.074]
[1754557763515,1.32847461,3729.9,3729.7,2.68117292]
[1754557763674,0.25087461,3729.8,3729.7,2.68117292]
[1754557763873,0.25087461,3729.8,3729.7,6.75517292]
[1754557764211,0.72767461,3729.8,3729.7,4.074]
[1754557764379,1.19407461,3729.8,3729.7,4.074]
[1754557765313,1.59521969,3729.8,3729.7,4.074]
[1754557765513,1.59521969,3729.8,3729.6,0.001]
[1754557765714,4.5596554,3729.7,3729.6,0.001]
[1754557769535,13.87353452,3729.7,3729.6,0.001]
[1754557770188,43.87353452,3729.7,3729.6,0.001]
[1754557770382,46.87353452,3729.7,3729.6,0.001]
[1754557770614,3.23139647,3729.4,3729.3,0.001]
[1754557770782,47.0045502,3729.4,3729.3,0.001]
[1754557770986,47.9477502,3729.4,3729.3,0.001]
[1754557771239,50.9477502,3729.4,3729.3,0.001]
[1754557772533,6.23146837,3729.3,3729.2,0.001]
[1754557772831,40.10942226,3729.3,3729.2,0.001]
[1754557773188,39.85854765,3729.3,3729.2,0.001]
[1754557773419,40.10933749,3729.3,3729.2,0.001]
[1754557773831,40.10922981,3729.3,3729.2,0.001]
[1754557776049,40.21673881,3729.3,3729.2,0.001]
[1754557776246,40.21654692,3729.3,3729.2,0.001]
[1754557781934,44.29154692,3729.3,3729.2,0.001]
[1754557783565,51.47154692,3729.3,3729.2,0.001]
[1754557784829,51.47108914,3729.3,3729.2,0.001]
[1754557787375,46.45288914,3729.3,3729.2,0.001]
[1754557787547,50.52788914,3729.3,3729.2,0.001]
[1754557788070,50.52793451,3729.3,3729.2,0.001]
[1754557789070,51.47113451,3729.3,3729.2,0.001]
[1754557789785,50.52793451,3729.3,3729.2,0.001]
[1754557789987,3.03905523,3729.3,3729.2,0.4403]
[1754557790168,3.03905523,3729.3,3729.2,0.9007]
[1754557790169,7.14094623,3729.3,3729.2,0.9007]
[1754557790688,7.69094623,3729.3,3729.2,0.9007]
[1754557791389,4.45947786,3729.3,3729.2,0.9007]
[1754557791538,7.14094623,3729.3,3729.2,0.9007]
[1754557791965,7.69094623,3729.3,3729.2,0.9007]
[1754557793465,7.69094623,3729.3,3729.2,0.4614]
[1754557793781,7.69094623,3729.3,3729.2,0.001]
[1754557793782,39.65327419,3729.3,3729.2,0.001]
[1754557793951,38.72872907,3729.3,3729.2,0.001]
[1754557794975,8.72872907,3729.3,3729.2,0.9007]
[1754557795141,38.72872907,3729.3,3729.2,0.001]
[1754557795959,39.19192907,3729.3,3729.2,0.001]
[1754557796160,39.65382907,3729.3,3729.2,0.001]
[1754557796559,39.19192907,3729.3,3729.2,0.001]
[1754557796876,38.72872907,3729.3,3729.2,0.001]
[1754557797077,34.65372907,3729.3,3729.2,0.001]
[1754557797286,38.72872907,3729.3,3729.2,0.001]
[1754557800282,8.72872907,3729.3,3729.2,0.001]
[1754557800485,3.23154027,3729.2,3729.1,0.001]
[1754557800684,6.16605229,3729.2,3729.1,0.001]
[1754557800994,36.16605229,3729.2,3729.1,0.001]
[1754557801895,36.16668738,3729.2,3729.1,0.001]
[1754557803192,36.16668738,3729.2,3729.1,0.4614]
[1754557803906,0.38566783,3729.2,3729.1,0.9007]
[1754557804065,4.45966783,3729.2,3729.1,0.9007]
[1754557804262,5.00966783,3729.2,3729.1,0.9007]
[1754557804568,0.38566783,3729.2,3729.1,0.9007]
[1754557804899,0.38561391,3729.2,3729.1,3.58231218]
[1754557805685,0.38561391,3729.2,3729.1,0.9007]
[1754557806810,0.38561391,3729.2,3729.1,3.58231218]
[1754557807303,0.38561391,3729.2,3729.1,0.9007]
[1754557807664,0.1344,3729.2,3729.1,0.9007]
[1754557807869,0.38545793,3729.2,3729.1,3.58231218]
[1754557808094,0.38545793,3729.2,3729.1,0.9007]
[1754557813030,3.6169982,3729.2,3729.1,0.001]
[1754557813189,5.31137874,3729.2,3729.1,0.001]
[1754557813929,5.31139161,3729.2,3729.1,0.001]
[1754557814096,8.56246241,3729.2,3729.1,0.001]
[1754557814703,3.23175601,3728.9,3728.8,0.001]
[1754557815017,7.94229761,3728.9,3728.8,0.001]
[1754557815220,41.86739761,3728.9,3728.8,0.001]
[1754557815419,2.68189985,3728.7,3728.6,0.001]
[1754557815585,2.68189985,3728.7,3728.4,0.001]
[1754557815586,6.23204371,3728.5,3728.4,1e-08]
[1754557815787,0.55,3728.2,3728.0,0.001]
[1754557816041,50.2557522,3728.1,3728.0,1e-08]
[1754557816389,51.1808522,3728.1,3728.0,1e-08]
[1754557816598,41.8667418,3728.1,3728.0,1e-08]
[1754557817301,41.86674178,3728.1,3728.0,1e-08]
[1754557817939,41.97427978,3728.1,3728.0,1e-08]
[1754557818145,44.78529472,3728.1,3728.0,1e-08]
[1754557819606,40.71143576,3728.1,3728.0,1e-08]
[1754557819906,43.86033576,3728.1,3728.0,1e-08]
[1754557820105,44.35683576,3728.1,3728.0,1e-08]
[1754557820307,44.79383576,3728.1,3728.0,1e-08]
[1754557820924,39.78633576,3728.1,3728.0,1e-08]
[1754557821126,43.86033576,3728.1,3728.0,1e-08]
[1754557821328,36.54297533,3728.1,3728.0,0.45430001]
[1754557821530,3.31778282,3728.1,3728.0,0.90390001]
[1754557821733,3.86778282,3728.1,3728.0,0.90390001]
[1754557822516,3.86731354,3728.1,3728.0,0.90390001]
[1754557822837,0.38469103,3728.1,3728.0,0.90390001]
[1754557825148,3.61702251,3728.1,3728.0,1e-08]
[1754557825336,4.33121048,3728.1,3728.0,1e-08]
[1754557825532,4.33117229,3728.1,3728.0,1e-08]
[1754557825734,8.40617229,3728.1,3728.0,1e-08]
[1754557826135,8.40617229,3728.1,3728.0,0.45430001]
[1754557826849,8.40616878,3728.1,3728.0,0.45430001]
[1754557827712,8.40616878,3728.1,3728.0,1e-08]
[1754557828019,42.58992626,3728.1,3728.0,1e-08]
[1754557828418,42.08941945,3728.1,3728.0,1e-08]
[1754557828628,42.58992161,3728.1,3728.0,1e-08]
[1754557828827,12.58992161,3728.1,3728.0,1e-08]
[1754557829245,42.58990557,3728.1,3728.0,1e-08]
[1754557829453,6.23240343,3728.0,3727.9,1e-08]
[1754557829748,49.66414795,3728.0,3727.9,1e-08]
[1754557830554,6.23247538,3727.9,3727.8,0.001]
[1754557830748,41.8758615,3727.9,3727.8,1e-08]
[1754557830953,6.23290719,3727.3,3727.2,0.001]
[1754557831248,10.80839331,3727.3,3727.2,0.001]
[1754557831501,10.69255827,3727.3,3727.2,0.001]
[1754557831653,10.94266757,3727.3,3727.2,0.001]
[1754557832521,50.25654669,3727.3,3727.2,0.001]
[1754557832745,51.90423466,3727.3,3727.2,0.001]
[1754557833546,41.65685554,3727.3,3727.2,0.001]
[1754557833946,41.65685554,3727.3,3727.2,0.4553]
[1754557834145,41.65685554,3727.3,3727.2,0.001]
[1754557834562,41.65655084,3727.3,3727.2,0.001]
[1754557834852,41.65634653,3727.3,3727.2,0.001]
[1754557836266,42.58984653,3727.3,3727.2,0.001]
[1754557836837,51.90372565,3727.3,3727.2,0.001]
[1754557837155,42.58984653,3727.3,3727.2,0.001]
[1754557837357,51.90372565,3727.3,3727.2,0.001]
[1754557838538,51.90372565,3727.3,3727.2,1e-08]
[1754557838943,52.27494642,3727.3,3727.2,1e-08]
[1754557840257,52.02504143,3727.3,3727.2,1e-08]
[1754557840440,52.27548389,3727.3,3727.2,1e-08]
[1754557841269,3.23319514,3726.9,3726.8,0.001]
[1754557841492,3.23319514,3726.9,3726.4,0.001]
[1754557841493,0.55,3726.8,3726.4,0.001]
[1754557841644,12.54736228,3726.5,3726.4,0.001]
[1754557841845,50.26015112,3726.5,3726.4,0.001]
[1754557842160,51.19365112,3726.5,3726.4,0.001]
[1754557842366,53.45017708,3726.5,3726.4,0.001]
[1754557844448,53.45017708,3726.5,3724.9,2.68460667]
[1754557844449,0.55,3726.2,3725.2,0.4543]
[1754557844807,47.58791469,3726.5,3725.2,0.4543]
[1754557844808,0.55,3725.3,3725.2,0.4543]
[1754557844947,5.01259442,3725.3,3725.2,0.4543]
[1754557845144,5.01259442,3725.3,3725.2,0.9039]
[1754557845485,7.69694198,3725.3,3725.2,0.9039]
[1754557845788,7.69694198,3725.3,3725.2,0.4543]
[1754557846885,5.01259442,3725.3,3725.2,0.4543]
[1754557847095,5.01259442,3725.3,3725.2,0.9039]
[1754557850506,0.93459442,3725.3,3725.2,0.9039]
[1754557850701,4.46259442,3725.3,3725.2,0.9039]
[1754557851583,4.46259442,3725.3,3725.2,3.58831962]
[1754557851795,4.46259442,3725.3,3725.2,0.9039]
[1754557852387,0.55,3725.2,3725.0,0.4801]
[1754557852589,4.4623897,3725.1,3724.7,0.4801]
[1754557852889,0.1344,3724.8,3724.4,2.68494589]
[1754557853185,0.55,3724.7,3724.5,0.4635]
[1754557853373,0.55,3724.7,3724.5,0.4801]
[1754557853580,0.55,3724.7,3724.6,0.9436]
[1754557853750,4.08,3724.8,3724.6,0.4801]
[1754557853955,0.1344,3724.7,3724.6,0.4801]
[1754557854481,4.2144,3724.7,3724.6,0.4801]
[1754557854662,4.2144,3724.7,3724.6,3.62845206]
[1754557854862,0.1344,3724.7,3724.6,4.25979108]
[1754557855690,0.1344,3724.7,3724.6,3.62845206]
[1754557855994,0.38459888,3724.7,3724.6,0.9436]
[1754557857897,0.55,3724.6,3724.0,0.001]
[1754557858195,0.25019888,3724.5,3724.4,0.4801]
[1754557858394,0.38459888,3724.5,3724.4,0.4801]
[1754557859487,0.38459888,3724.5,3724.1,2.68518825]
[1754557859702,0.1344,3724.5,3724.4,0.4801]
[1754557859989,0.25052106,3724.5,3724.4,0.4801]
[1754557860192,0.38492106,3724.5,3724.4,0.4801]
[1754557860796,3.61987146,3724.5,3724.0,0.001]
[1754557860972,0.1344,3724.1,3724.0,0.001]
[1754557861297,6.62015984,3724.1,3724.0,0.001]
[1754557861555,6.87064807,3724.1,3724.0,0.001]
[1754557862061,4.18543554,3724.1,3724.0,0.001]
[1754557862266,6.87064807,3724.1,3724.0,0.001]
[1754557862715,6.62015984,3724.1,3724.0,0.001]
[1754557862867,6.36961253,3724.1,3724.0,0.001]
[1754557863199,6.87014499,3724.1,3724.0,0.001]
[1754557864281,7.34724499,3724.1,3724.0,0.001]
[1754557864467,8.88578713,3724.1,3724.0,0.001]
[1754557864780,8.75138713,3724.1,3724.0,0.001]
[1754557864974,9.19178713,3724.1,3724.0,0.001]
[1754557865981,9.19160592,3724.1,3724.0,0.001]
[1754557867725,39.19160592,3724.1,3724.0,0.001]
[1754557869982,39.19160592,3724.1,3724.0,1e-08]
[1754557870182,6.23535674,3723.9,3723.8,0.001]
[1754557870408,52.71276306,3723.9,3723.8,0.001]
[1754557870816,53.63026306,3723.9,3723.8,0.001]
[1754557871803,53.62968622,3723.9,3723.8,0.001]
[1754557872315,53.62968622,3723.9,3723.8,1e-08]
[1754557873309,53.62968622,3723.9,3723.1,150.0]
[1754557873310,6.23586162,3723.2,3723.1,150.0]
[1754557873613,41.29973603,3723.2,3723.1,150.0]
[1754557873783,41.43302831,3723.2,3723.1,150.0]
[1754557873989,41.87342831,3723.2,3723.1,150.0]
[1754557874577,41.3736539,3723.2,3723.1,150.0]
[1754557874902,42.83268219,3723.2,3723.1,150.0]
[1754557875282,42.83268205,3723.2,3723.1,150.0]
[1754557877424,42.83268205,3723.2,3723.1,119.92397652]
[1754557877583,42.83184633,3723.2,3723.1,119.92397652]
[1754557878524,38.74484633,3723.2,3723.1,119.92397652]
[1754557878817,42.83684633,3723.2,3723.1,119.92397652]
[1754557879004,38.74484633,3723.2,3723.1,119.92397652]
[1754557879182,42.83784633,3723.2,3723.1,119.92397652]
[1754557880344,42.83784633,3723.2,3723.1,119.66166109]
[1754557881541,42.83784633,3723.2,3723.1,114.87382627]
[1754557881736,42.70344633,3723.2,3723.1,114.5240694]
[1754557882497,12.70344633,3723.2,3723.1,114.5240694]
[1754557882725,42.70344633,3723.2,3723.1,108.43016654]
[1754557883128,42.70344633,3723.2,3723.1,103.93394469]
[1754557883299,42.70339672,3723.2,3723.1,99.43772284]
[1754557883496,12.70339672,3723.2,3723.1,99.43772284]
[1754557883700,42.70339672,3723.2,3723.1,79.25005456]
[1754557884136,41.87770957,3723.2,3723.1,58.34629537]
[1754557885149,41.87770957,3723.2,3723.1,58.17140823]
[1754557885905,50.75018869,3723.2,3723.1,58.17140823]
[1754557886139,50.27308869,3723.2,3723.1,58.17140823]
[1754557886342,49.77503302,3723.2,3723.1,58.17140823]
[1754557886521,50.27343983,3723.2,3723.1,58.17140823]
[1754557887620,50.27368454,3723.2,3723.1,58.17140823]
[1754557887806,51.18728454,3723.2,3723.1,58.17140823]
[1754557888543,51.18728454,3723.2,3723.1,57.821643]
[1754557888950,50.27368454,3723.2,3723.1,57.821643]
[1754557889514,50.2740104,3723.2,3723.1,57.821643]
[1754557890140,50.2740104,3723.2,3723.1,57.55931908]
[1754557891645,50.4084104,3723.2,3723.1,57.55931908]
[1754557892440,50.40851471,3723.2,3723.1,57.55931908]
[1754557893119,51.32211471,3723.2,3723.1,57.55931908]
[1754557893314,51.32011471,3723.2,3723.1,57.55931908]
[1754557894039,51.32011471,3723.2,3723.1,34.29369901]
[1754557894527,51.32011471,3723.2,3723.1,5.66499954]
[1754557894726,51.32011471,3723.2,3723.1,1.25931241]
[1754557895148,51.32011471,3723.2,3723.1,0.85931241]
[1754557895450,51.32020826,3723.2,3723.1,0.85931241]
[1754557895822,51.31920826,3723.2,3723.1,0.85931241]
[1754557897159,51.31820826,3723.2,3723.1,0.42208443]
[1754557898466,47.23020826,3723.2,3723.1,0.42208443]
[1754557898621,51.31820826,3723.2,3723.1,0.42208443]
[1754557898818,47.23020826,3723.2,3723.1,0.42208443]
[1754557899078,51.31720826,3723.2,3723.1,0.42208443]
[1754557899640,52.12495926,3723.2,3723.1,0.42208443]
[1754557900041,47.12435926,3723.2,3723.1,0.42208443]
[1754557900350,47.12435926,3723.2,3722.9,1.13207415]
[1754557900351,6.2360059,3723.0,3722.9,1.13207415]
[1754557900663,47.41458114,3723.0,3722.9,1.13207415]
[1754557901417,47.41646894,3723.0,3722.9,1.13207415]
[1754557902022,47.41647145,3723.0,3722.9,1.13207415]
[1754557902256,6.23607805,3722.9,3722.8,0.001]
[1754557902457,46.05102272,3722.9,3722.8,0.001]
[1754557902659,33.50106555,3722.9,3722.8,0.9395]
[1754557902952,34.72346555,3722.9,3722.8,0.9395]
[1754557903252,37.72346555,3722.9,3722.8,0.9395]
[1754557903457,30.63546555,3722.9,3722.8,0.9395]
[1754557903749,4.47293403,3722.9,3722.8,0.9395]
[1754557904325,4.47317901,3722.9,3722.8,0.9395]
[1754557904531,5.02317901,3722.9,3722.8,0.9395]
[1754557904749,4.47317901,3722.9,3722.8,0.9395]
[1754557905053,5.02317901,3722.9,3722.8,0.9395]
[1754557905370,0.93517901,3722.9,3722.8,0.9395]
[1754557905521,5.02317901,3722.9,3722.8,0.9395]
[1754557907323,5.02217901,3722.9,3722.8,0.9395]
[1754557908667,0.93517901,3722.9,3722.8,0.9395]
[1754557908825,5.02117901,3722.9,3722.8,0.9395]
[1754557910354,0.93517901,3722.9,3722.8,0.9395]
[1754557910558,5.02017901,3722.9,3722.8,0.9395]
[1754557910737,0.93517901,3722.9,3722.8,0.9395]
[1754557910937,5.01917901,3722.9,3722.8,0.9395]
[1754557912158,0.93517901,3722.9,3722.8,0.9395]
[1754557912370,5.01917901,3722.9,3722.8,0.9395]
[1754557912582,0.93517901,3722.9,3722.8,3.6256502]
[1754557912747,5.01917901,3722.9,3722.8,0.9395]
[1754557914942,0.93517901,3722.9,3722.8,0.9395]
[1754557915142,5.01817901,3722.9,3722.8,0.9395]
[1754557915551,0.93517901,3722.9,3722.8,0.9395]
[1754557915762,5.01817901,3722.9,3722.8,0.9395]
[1754557915958,4.7674,3722.9,3722.8,0.9395]
[1754557916256,5.01765447,3722.9,3722.8,0.9395]
[1754557916828,5.01765447,3722.9,3722.8,0.4707]
[1754557917266,5.01765447,3722.9,3722.8,0.9182]
[1754557917664,0.93465447,3722.9,3722.8,0.9182]
[1754557917899,5.01765447,3722.9,3722.8,0.9182]
[1754557918387,8.01765447,3722.9,3722.8,0.001]
[1754557918583,10.70373252,3722.9,3722.8,0.001]
[1754557918784,8.01765447,3722.9,3722.8,0.001]
[1754557919382,8.01765447,3722.9,3722.8,0.5196]
[1754557920792,8.01765447,3722.9,3722.8,0.9671]
[1754557920970,8.01765447,3722.9,3722.8,0.5196]
[1754557921282,10.70373252,3722.9,3722.8,0.001]
[1754557921484,10.70273252,3722.9,3722.8,0.001]
[1754557921992,37.08013252,3722.9,3722.8,0.001]